[Event "Red Bull Chess Masters 2018"]
[Site "Istanbul"]
[Date "2018.10.20"]
[Round "3.1"]
[White "Sevgi, Volkan"]
[Black "Gunduz, Umut Erdem"]
[Result "1-0"]
[ECO "C47"]
[WhiteElo "2296"]
[BlackElo "2205"]
[Annotator "NA"]
[PlyCount "117"]
[EventDate "2018.10.19"]
[EventType "team-tourn"]
[EventCountry "TUR"]
[SourceTitle "playchess.com"]
[Source "ChessBase"]
[SourceQuality "1"]
[TimeControl "600+5"]

1. e4 {[%emt 0:00:05]} e5 {[%emt 0:00:05]} 2. Nc3 {[%emt 0:00:05]} Nf6 {[%emt 0:00:05]} 3. g3 {[%emt 0:00:00]} d5 {[%emt 0:00:00]} 4. exd5 {[%emt 0:00:00]} Nxd5 {[%emt 0:00:04]} 5. Bg2 {[%emt 0:00:00]} Be6 {[%emt 0:00:16]} 6. Nf3 {[%emt 0:00:02]} Nc6 {[%emt 0:00:05]} 7. O-O {[%emt 0:00:01]} Nxc3 {[%emt 0:01:28]} 8. bxc3 {[%emt 0:00:05] C47: Scotch Four Knights and Four Knights with 4 g3} Bc5 {[%emt 0:00:07]} (8... e4 9. Ne1 f5 10. d3 Be7 11. Qh5+ g6 12. Qe2 O-O 13. dxe4 Na5 14. exf5 Bc4 15. Nd3 Rxf5 {1-0 (43) Palit,S (2442)-Dale,A (2225) Canberra 2013}) 9. d3 {[%emt 0:00:03]} h6 $146 {[%emt 0:01:45]} ({Predecessor:} 9... O-O 10. Re1 f6 11. d4 Bb6 12. Be3 e4 13. Nd2 f5 14. f3 exf3 15. Nxf3 Bd5 {1-0 (53) Pallas,S (1897)-Riehle,M (1876) Oberhof 2013}) 10. Qe2 {[%emt 0:00:03]} Qf6 {[%emt 0:01:05]} 11. Be3 {[%emt 0:00:32]} Bb6 {[%emt 0:00:28]} 12. Rfe1 {[%emt 0:00:35]} e4 {[%emt 0:00:49]} 13. Nd4 {[%emt 0:00:48]} Nxd4 {[%emt 0:01:05]} 14. Bxd4 {[%emt 0:00:10]} Bxd4 {[%emt 0:00:05]} 15. cxd4 {[%emt 0:00:05]} Qxd4 {[%emt 0:00:43]} 16. Qxe4 {[%emt 0:00:13]} Qxe4 {[%emt 0:00:05]} 17. Bxe4 {[%emt 0:00:00]} O-O-O {[%emt 0:00:19]} 18. a4 {[%emt 0:00:05]} a5 {[%emt 0:00:17]} 19. f4 {[%emt 0:00:16]} c6 {[%emt 0:00:39]} 20. c4 {[%emt 0:00:32]} Bh3 {[%emt 0:00:14]} 21. f5 {[%emt 0:00:24]} Rhe8 {[%emt 0:00:13]} 22. Re2 {[%emt 0:01:06]} Kc7 {[%emt 0:00:20]} 23. Rb2 {[%emt 0:00:25]} Re5 {[%emt 0:00:35]} 24. Rab1 {[%emt 0:00:05]} Rb8 {[%emt 0:00:05]} 25. Rf2 {[%emt 0:00:00]} b5 {[%emt 0:00:11]} 26. cxb5 {[%emt 0:00:01]} cxb5 {[%emt 0:00:01]} 27. Rc1+ {[%emt 0:02:19]} Kd8 {[%emt 0:00:19]} 28. axb5 {[%emt 0:00:05]} Rexb5 {[%emt 0:00:18]} 29. Rf4 {[%emt 0:00:08]} Rb1 {[%emt 0:00:12]} 30. Rxb1 {[%emt 0:00:05]} Rxb1+ {[%emt 0:00:05]} 31. Kf2 {[%emt 0:00:00]} a4 {[%emt 0:00:14]} 32. Ke3 {[%emt 0:01:08]} a3 {[%emt 0:00:05]} 33. Bd5 {[%emt 0:00:00]} Rb5 {[%emt 0:00:19]} 34. Rd4 {[%emt 0:00:09]} (34. Bxf7 $11 Ra5 35. Ba2 (35. f6 gxf6 36. Ba2 Ke7 $11)) 34... Ke7 {[%emt 0:00:05]} 35. g4 {[%emt 0:00:13]} Bxg4 {[%emt 0:00:03]} 36. Bc4 {[%emt 0:00:05]} Ra5 {[%emt 0:00:04]} 37. Rxg4 {[%emt 0:00:24]} a2 {[%emt 0:00:05]} 38. Bxa2 {[%emt 0:00:05]} Rxa2 {[%emt 0:00:05]} 39. Rxg7 {[%emt 0:00:01]} Rxh2 {[%emt 0:00:00]} 40. Rh7 {[%emt 0:00:45]} Kf6 {[%emt 0:00:08]} 41. d4 {[%emt 0:00:24]} Rh3+ {[%emt 0:00:05]} 42. Ke4 {[%emt 0:00:05]} h5 {[%emt 0:00:02]} 43. d5 {[%emt 0:00:07]} Ke7 {[%emt 0:00:05]} 44. Ke5 {[%emt 0:00:05]} Re3+ {[%emt 0:00:04]} 45. Kf4 {[%emt 0:00:13]} Rh3 {[%emt 0:00:05]} 46. Ke5 {[%emt 0:00:05]} Re3+ {[%emt 0:00:05]} 47. Kf4 {[%emt 0:00:05]} Rh3 {[%emt 0:00:00]} 48. d6+ {[%emt 0:00:45]} Kxd6 {[%emt 0:00:08]} 49. Rxf7 {[%emt 0:00:02]} Rh1 {[%emt 0:00:11]} 50. Rh7 {[%emt 0:00:05]} h4 $11 {[%emt 0:00:05]} 51. Kg5 {[%emt 0:00:13]} h3 {[%emt 0:00:05]} 52. Kg6 {[%emt 0:00:20]} h2 {[%emt 0:00:05]} 53. Kf6 {[%emt 0:00:07]} Kd5 {[%emt 0:00:07]} 54. Rh4 {[%emt 0:00:09]} Kc5 {[%emt 0:00:07]} 55. Rh8 {[%emt 0:00:04]} Kd6 {[%emt 0:00:05]} 56. Rd8+ {[%emt 0:00:05]} Kc7 {[%emt 0:00:00]} 57. Rd2 {[%emt 0:00:00]} Kc6 {[%emt 0:00:06]} 58. Rf2 {[%emt 0:00:35]} Kd7 {[%emt 0:00:05]} 59. Kf7 {[%emt 0:00:15]} 1-0

[Event "Red Bull Chess Masters 2018"]
[Site "Istanbul"]
[Date "2018.10.20"]
[Round "3.1"]
[White "Tarlabasi, Emirhan"]
[Black "Ozdover, Mustafa Berkay"]
[Result "0-1"]
[ECO "A52"]
[WhiteElo "2264"]
[BlackElo "2120"]
[Annotator "NA"]
[PlyCount "100"]
[EventDate "2018.10.19"]
[EventType "team-tourn"]
[EventCountry "TUR"]
[SourceTitle "playchess.com"]
[Source "ChessBase"]
[SourceQuality "1"]
[TimeControl "600+5"]

1. d4 {[%emt 0:00:05]} Nf6 {[%emt 0:00:02]} 2. c4 {[%emt 0:00:05]} e5 {[%emt 0:00:05]} 3. dxe5 {[%emt 0:00:05]} Ng4 {[%emt 0:00:02]} 4. e3 {[%emt 0:00:39]} Nxe5 {[%emt 0:00:19]} 5. Nc3 {[%emt 0:00:04]} Bc5 {[%emt 0:01:42]} 6. Ne4 {[%emt 0:03:54]} Bb4+ {[%emt 0:01:03]} 7. Bd2 {[%emt 0:00:05]} Bxd2+ {[%emt 0:00:03]} 8. Qxd2 {[%emt 0:00:18]} d6 {[%emt 0:01:18]} 9. f4 {[%emt 0:00:51]} Ng6 {[%emt 0:00:34]} 10. O-O-O {[%emt 0:00:13]} Nc6 {[%emt 0:00:57]} 11. Nf3 {[%emt 0:00:27]} O-O {[%emt 0:01:23]} 12. h4 {[%emt 0:00:16]} Re8 {[%emt 0:00:03]} 13. Nc3 {[%emt 0:00:15]} Bg4 {[%emt 0:01:29] [#]} 14. Bd3 {[%emt 0:00:29]} (14. h5 $1 $16 {[%cal Rh5g6]} Nf8 15. h6) 14... Nf8 {[%emt 0:01:29]} 15. Rde1 {[%emt 0:00:43]} a5 {[%emt 0:00:10]} 16. h5 {[%emt 0:01:04]} a4 {[%emt 0:00:12]} 17. h6 {[%emt 0:00:17]} g6 {[%emt 0:00:05]} 18. Nd5 {[%emt 0:00:39]} Nd7 {[%emt 0:00:20] [#]} 19. Qc3 $18 {[%emt 0:00:19]} f6 {[%emt 0:00:01]} 20. Nh4 {[%emt 0:00:32]} Be6 {[%emt 0:00:12]} 21. f5 {[%emt 0:00:14]} Bxd5 {[%emt 0:00:05]} 22. cxd5 {[%emt 0:00:05]} Nce5 {[%emt 0:00:05]} 23. fxg6 {[%emt 0:00:05]} Nc5 {[%emt 0:00:02]} 24. gxh7+ {[%emt 0:00:06]} Kh8 {[%emt 0:00:11]} 25. Ng6+ {[%emt 0:00:05]} Nxg6 {[%emt 0:00:05]} 26. Bxg6 {[%emt 0:00:05]} Re5 {[%emt 0:00:05]} 27. e4 {[%emt 0:00:00]} Rg5 {[%emt 0:00:00]} 28. Bh5 {[%emt 0:00:12]} Qe7 {[%emt 0:00:01]} 29. Bf3 {[%emt 0:00:01]} b5 {[%emt 0:00:15]} 30. Rh4 {[%emt 0:00:05]} b4 {[%emt 0:00:05]} 31. Qd4 {[%emt 0:00:09]} Re8 {[%emt 0:00:00]} 32. Kd2 {[%emt 0:00:05]} b3 {[%emt 0:00:03]} 33. a3 {[%emt 0:00:05]} Kxh7 {[%emt 0:00:05]} 34. Rf4 {[%emt 0:00:05]} Rf8 {[%emt 0:00:05]} 35. Bg4 {[%emt 0:00:00]} Kh8 {[%emt 0:00:07]} 36. Ref1 {[%emt 0:00:05]} Re5 {[%emt 0:00:05]} 37. Bf5 {[%emt 0:00:05]} Re8 {[%emt 0:00:05]} 38. Re1 {[%emt 0:00:05]} Rg8 {[%emt 0:00:05]} 39. g4 {[%emt 0:00:05]} Rf8 {[%emt 0:00:05]} 40. h7 {[%emt 0:00:05]} Qg7 {[%emt 0:00:05]} 41. Rh1 {[%emt 0:00:09]} Qg5 {[%emt 0:00:06]} 42. Qe3 {[%emt 0:00:01]} Rfe8 {[%emt 0:00:02]} 43. Rh5 {[%emt 0:00:05]} Qg7 {[%emt 0:00:02]} 44. g5 {[%emt 0:00:11]} fxg5 {[%emt 0:00:09]} 45. Rg4 {[%emt 0:00:05]} Rxf5 {[%emt 0:00:00]} 46. exf5 {[%emt 0:00:03]} Qxb2+ {[%emt 0:00:00]} 47. Kd1 {[%emt 0:00:05]} Qc2+ {[%emt 0:00:05]} 48. Ke1 {[%emt 0:00:05]} Rxe3+ {[%emt 0:00:05]} 49. Kf1 {[%emt 0:00:05]} Qd1+ {[%emt 0:00:00]} 50. Kg2 {[%emt 0:00:00]} Qxg4+ {[%emt 0:00:05]} 0-1

[Event "Red Bull Chess Masters 2018"]
[Site "Istanbul"]
[Date "2018.10.20"]
[Round "3.1"]
[White "Isik, Alparslan"]
[Black "Yarar, Muammer Atakan"]
[Result "1-0"]
[ECO "E09"]
[WhiteElo "2220"]
[BlackElo "1784"]
[Annotator "NA"]
[PlyCount "113"]
[EventDate "2018.10.19"]
[EventType "team-tourn"]
[EventCountry "TUR"]
[SourceTitle "playchess.com"]
[Source "ChessBase"]
[SourceQuality "1"]
[TimeControl "600+5"]

1. d4 {[%emt 0:00:05]} d5 {[%emt 0:00:05]} 2. c4 {[%emt 0:00:05]} c6 {[%emt 0:00:05]} 3. Nf3 {[%emt 0:00:00]} Nf6 {[%emt 0:00:00]} 4. Nbd2 {[%emt 0:00:00]} Bf5 {[%emt 0:00:02]} 5. Nh4 {[%emt 0:00:00]} Bc8 {[%emt 0:00:18]} 6. g3 {[%emt 0:00:12]} e6 {[%emt 0:00:15]} 7. Bg2 {[%emt 0:00:05]} Be7 {[%emt 0:00:05]} 8. O-O {[%emt 0:00:05]} O-O {[%emt 0:00:00]} 9. Nhf3 {[%emt 0:00:09]} Nbd7 {[%emt 0:00:00]} 10. Qc2 {[%emt 0:00:07]} b6 {[%emt 0:00:03]} 11. e4 {[%emt 0:00:02]} dxe4 {[%emt 0:00:13]} 12. Nxe4 {[%emt 0:00:05]} Nxe4 {[%emt 0:00:05]} 13. Qxe4 {[%emt 0:00:05]} Bb7 {[%emt 0:00:00]} 14. Rd1 {[%emt 0:00:04]} Rc8 {[%emt 0:00:07]} 15. Bf4 {[%emt 0:00:26]} Re8 {[%emt 0:00:06] E09: Closed Catalan: Main Line: 7 Qc2 c6 8 Nbd2} 16. Rac1 {[%emt 0:00:39]} (16. h4 h6 17. Rac1 Bf8 18. Rc2 Qe7 19. Re2 Qb4 20. Qc2 Ba6 21. b3 Red8 22. Ree1 Bb7 23. Bd2 {½-½ (41) Gajek,R (2426)-Simacek,P (2454) Legnica 2015}) 16... Ba8 {[%emt 0:00:01]} 17. Qc2 {[%emt 0:00:29]} Bb7 {[%emt 0:00:25]} 18. a3 {[%emt 0:00:14]} Nf8 {[%emt 0:00:10]} 19. h4 {[%emt 0:00:48]} Ng6 $146 {[%emt 0:00:05]} ({Predecessor:} 19... h6 20. Qa4 a6 21. Ne5 b5 22. Qb3 Ba8 23. Qf3 {1-0 (40) Smyslov,V-O'Kelly de Galway,A Havana 1967}) 20. Be3 {[%emt 0:00:04]} Qc7 {[%emt 0:00:14]} 21. h5 {[%emt 0:00:14]} Nf8 {[%emt 0:00:01]} 22. Bf4 {[%emt 0:00:14]} Bd6 {[%emt 0:00:18]} 23. Bxd6 {[%emt 0:00:05]} Qxd6 {[%emt 0:00:05]} 24. c5 {[%emt 0:00:00]} Qc7 {[%emt 0:01:00]} 25. h6 {[%emt 0:00:00]} g6 {[%emt 0:00:26]} 26. Ne5 {[%emt 0:00:00]} b5 {[%emt 0:00:19]} 27. Ng4 {[%emt 0:00:27]} Qe7 {[%emt 0:00:14]} 28. f4 {[%emt 0:00:12]} Nd7 {[%emt 0:00:13]} 29. Nf2 {[%emt 0:00:08]} Nf6 {[%emt 0:00:48]} 30. Ne4 {[%emt 0:00:43]} Nxe4 {[%emt 0:00:05]} 31. Qxe4 {[%emt 0:00:05]} Qf8 {[%emt 0:00:09]} 32. Kf2 {[%emt 0:00:00]} Qxh6 {[%emt 0:00:00]} 33. Rh1 {[%emt 0:00:30]} Qg7 {[%emt 0:00:05]} 34. Rh4 {[%emt 0:00:04]} h5 {[%emt 0:01:26]} 35. Bf3 {[%emt 0:00:36]} Rcd8 {[%emt 0:00:30]} 36. Rd1 {[%emt 0:00:33]} Rd7 {[%emt 0:00:38]} 37. Qe5 {[%emt 0:00:01]} Red8 {[%emt 0:00:30]} 38. Ke3 {[%emt 0:00:31]} a6 {[%emt 0:00:18]} 39. g4 {[%emt 0:00:35]} Qxe5+ {[%emt 0:00:13]} 40. fxe5 {[%emt 0:00:04]} hxg4 {[%emt 0:00:07]} 41. Rdh1 {[%emt 0:00:47]} Kf8 {[%emt 0:00:36]} 42. Rxg4 {[%emt 0:00:01]} a5 {[%emt 0:00:39]} 43. Rh7 {[%emt 0:00:51]} Ke7 {[%emt 0:01:58]} 44. Rf4 {[%emt 0:00:25]} Rf8 {[%emt 0:00:13]} 45. Be4 {[%emt 0:00:05]} Ke8 {[%emt 0:00:05]} 46. Bxg6 {[%emt 0:00:06]} a4 {[%emt 0:00:10]} 47. Rf6 $18 {[%emt 0:00:07]} Bc8 {[%emt 0:00:02]} 48. Rxe6+ {[%emt 0:00:14]} Re7 {[%emt 0:00:09]} 49. Rxc6 {[%emt 0:00:35]} Bb7 {[%emt 0:00:05]} 50. Rb6 {[%emt 0:00:05]} fxg6 {[%emt 0:00:05]} 51. Rxb7 {[%emt 0:00:26]} Rxh7 {[%emt 0:00:19]} 52. Rxh7 {[%emt 0:00:02]} g5 {[%emt 0:00:05]} 53. Rg7 {[%emt 0:00:05]} Rf5 {[%emt 0:00:05]} 54. c6 {[%emt 0:00:05]} Kd8 {[%emt 0:00:05]} 55. Ke4 {[%emt 0:00:01]} Rf2 {[%emt 0:00:00]} 56. Kd5 {[%emt 0:00:06]} Rxb2 {[%emt 0:00:00]} 57. Kd6 {[%emt 0:00:01]} 1-0

[Event "Red Bull Chess Masters 2018"]
[Site "Istanbul"]
[Date "2018.10.20"]
[Round "3.1"]
[White "Aydincelebi, Kagan"]
[Black "Karaokcu, Erkin"]
[Result "0-1"]
[ECO "B51"]
[WhiteElo "2193"]
[BlackElo "2256"]
[Annotator "NA"]
[PlyCount "78"]
[EventDate "2018.10.19"]
[EventType "team-tourn"]
[EventCountry "TUR"]
[SourceTitle "playchess.com"]
[Source "ChessBase"]
[SourceQuality "1"]
[TimeControl "600+5"]

1. e4 {[%emt 0:00:05]} c5 {[%emt 0:00:05]} 2. Nf3 {[%emt 0:00:05]} d6 {[%emt 0:00:05]} 3. Bb5+ {[%emt 0:00:05]} Nd7 {[%emt 0:00:05]} 4. d4 {[%emt 0:00:05]} cxd4 {[%emt 0:00:00]} 5. Qxd4 {[%emt 0:00:00]} a6 {[%emt 0:00:00]} 6. Bxd7+ {[%emt 0:00:00]} Qxd7 {[%emt 0:00:01] B51: Sicilian: Moscow Variation (3 Bb5+) without 3...Bd7} (6... Bxd7 7. Nc3 e5 8. Qd3 h6 9. Nd2 Rc8 10. Nc4 Be6 11. Ne3 Nf6 12. Bd2 Be7 13. a4 O-O 14. O-O Qd7 15. a5 Rfd8 {½-½ (58) Duda,J (2737)-Nepomniachtchi,I (2757) Dortmund 2018}) 7. O-O {[%emt 0:00:00]} e5 {[%emt 0:00:05]} 8. Qd3 {[%emt 0:00:00]} h6 {[%emt 0:00:05]} 9. c4 {[%emt 0:00:05]} b5 {[%emt 0:00:05]} 10. Nc3 {[%emt 0:00:00]} bxc4 {[%emt 0:00:15]} 11. Qxc4 {[%emt 0:00:04]} Nf6 $146 {[%emt 0:00:05]} ({Predecessor:} 11... Bb7 12. Rd1 Rc8 {½-½ (12) Ozen,D (2072)-Isik,E (2212) Manavgat 2015}) 12. Rd1 {[%emt 0:00:00]} Qb7 {[%emt 0:00:29]} 13. b3 {[%emt 0:00:15]} Be6 {[%emt 0:00:51]} 14. Qd3 {[%emt 0:00:21]} Be7 {[%emt 0:00:20]} 15. Ba3 {[%emt 0:00:03]} O-O {[%emt 0:00:14]} 16. Rac1 {[%emt 0:00:02]} Rfd8 {[%emt 0:00:14]} 17. Nd5 $2 {[%emt 0:00:34]} (17. h3 $11 {and White is okay.}) 17... Bxd5 {[%emt 0:00:17]} 18. exd5 {[%emt 0:00:05]} e4 {[%emt 0:00:02]} 19. Qe3 {[%emt 0:00:26]} exf3 {[%emt 0:00:05]} 20. Qxf3 {[%emt 0:00:00]} Nd7 {[%emt 0:00:51]} 21. Bb2 {[%emt 0:00:23]} Bf6 {[%emt 0:00:17]} 22. Ba3 {[%emt 0:00:06]} Ne5 {[%emt 0:00:18]} 23. Qe3 {[%emt 0:00:26]} Rac8 {[%emt 0:00:10]} 24. h3 {[%emt 0:00:10]} Rxc1 {[%emt 0:00:24]} 25. Rxc1 {[%emt 0:00:01]} Qxd5 {[%emt 0:00:05]} 26. Qb6 {[%emt 0:00:04]} Ng6 {[%emt 0:00:55]} 27. Qxa6 {[%emt 0:00:11]} Nf4 {[%emt 0:00:17]} 28. Qf1 {[%emt 0:00:08]} Ra8 {[%emt 0:00:14]} 29. Rd1 {[%emt 0:00:03]} Qg5 {[%emt 0:00:41]} 30. Bxd6 {[%emt 0:00:17]} Rxa2 {[%emt 0:00:16]} 31. Re1 {[%emt 0:00:51]} Nxh3+ {[%emt 0:00:20]} 32. Kh2 {[%emt 0:00:08]} Nxf2 {[%emt 0:00:13]} 33. Re8+ {[%emt 0:00:05]} Kh7 {[%emt 0:00:05]} 34. Qb1+ {[%emt 0:00:00]} Qg6 {[%emt 0:02:00]} 35. Qxa2 {[%emt 0:00:02]} Bd4 {[%emt 0:00:01]} 36. Qe2 {[%emt 0:02:38]} Qxd6+ $19 {[%emt 0:00:22]} 37. g3 {[%emt 0:00:01]} Qd5 {[%emt 0:00:17]} 38. Qf1 {[%emt 0:00:23]} Qh5+ {[%emt 0:00:09]} 39. Kg2 {[%emt 0:00:05]} Qh3+ {[%emt 0:00:05]} 0-1

[Event "Red Bull Chess Masters 2018"]
[Site "Istanbul"]
[Date "2018.10.20"]
[Round "3.1"]
[White "Yeke, Serkan"]
[Black "Eren, Ataberk"]
[Result "0-1"]
[ECO "D19"]
[WhiteElo "2117"]
[BlackElo "2188"]
[Annotator "NA"]
[PlyCount "86"]
[EventDate "2018.10.19"]
[EventType "team-tourn"]
[EventCountry "TUR"]
[SourceTitle "playchess.com"]
[Source "ChessBase"]
[SourceQuality "1"]
[TimeControl "600+5"]

1. Nf3 {[%emt 0:00:10]} d5 {[%emt 0:00:05]} 2. d4 {[%emt 0:00:05]} Nf6 {[%emt 0:00:05]} 3. c4 {[%emt 0:00:05]} c6 {[%emt 0:00:00]} 4. Nc3 {[%emt 0:00:10]} dxc4 {[%emt 0:00:04]} 5. a4 {[%emt 0:00:05]} Bf5 {[%emt 0:00:01]} 6. e3 {[%emt 0:01:09]} e6 {[%emt 0:00:05]} 7. Bxc4 {[%emt 0:00:05]} Bb4 {[%emt 0:00:05]} 8. O-O {[%emt 0:00:05]} Nbd7 {[%emt 0:00:00]} 9. Qe2 {[%emt 0:00:16]} Bg6 {[%emt 0:00:08]} 10. e4 {[%emt 0:01:59]} O-O {[%emt 0:00:02] LiveBook: 1084 Games} 11. Bd3 {[%emt 0:00:31]} Bh5 {[%emt 0:00:05]} 12. e5 {[%emt 0:00:59]} Nd5 {[%emt 0:00:05]} 13. Nxd5 {[%emt 0:00:15]} cxd5 {[%emt 0:00:02]} 14. Qe3 {[%emt 0:00:02]} Be7 {[%emt 0:00:57]} 15. Ng5 {[%emt 0:00:42]} Bxg5 {[%emt 0:00:10]} 16. Qxg5 {[%emt 0:00:02]} Bg6 {[%emt 0:00:10]} 17. Qg3 {[%emt 0:01:16]} Bxd3 {[%emt 0:00:10]} 18. Qxd3 {[%emt 0:00:01]} Rc8 {[%emt 0:00:16]} 19. Ra3 {[%emt 0:00:02]} Qc7 {[%emt 0:00:28]} 20. Bg5 {[%emt 0:00:36]} Qc2 {[%emt 0:00:49]} 21. Qg3 {[%emt 0:00:03]} Qg6 {[%emt 0:00:30]} 22. Qh4 {[%emt 0:00:05]} Qe4 {[%emt 0:00:20]} 23. Qg3 {[%emt 0:00:35]} Qg6 {[%emt 0:00:05]} 24. Qh4 {[%emt 0:00:05]} Qe4 {[%emt 0:00:09]} 25. Qg3 {[%emt 0:00:18]} Qxd4 {[%emt 0:02:47]} 26. Re3 {[%emt 0:00:02]} Kh8 {[%emt 0:01:03]} 27. Be7 {[%emt 0:00:35]} Rfe8 {[%emt 0:00:30]} 28. Bd6 {[%emt 0:00:02]} Rc4 {[%emt 0:00:25]} 29. b3 {[%emt 0:00:07]} Rc2 {[%emt 0:00:07]} 30. Qg5 {[%emt 0:00:30]} Nf8 {[%emt 0:01:59]} 31. Rf3 {[%emt 0:00:11]} Kg8 {[%emt 0:00:17]} 32. h4 {[%emt 0:00:21]} Ng6 {[%emt 0:00:18]} 33. h5 {[%emt 0:00:33]} Qh4 {[%emt 0:00:05]} 34. Qe3 {[%emt 0:00:05]} Qxh5 {[%emt 0:00:15]} 35. Qxa7 {[%emt 0:00:00]} Nh4 {[%emt 0:00:08]} 36. Rg3 {[%emt 0:00:04]} Nf5 {[%emt 0:00:05]} 37. Rh3 {[%emt 0:00:05]} Qg4 {[%emt 0:00:05]} 38. Qxb7 {[%emt 0:00:17]} Nd4 {[%emt 0:00:01]} 39. a5 {[%emt 0:00:09]} Ne2+ {[%emt 0:00:05]} 40. Kh1 {[%emt 0:00:05]} Nf4 {[%emt 0:00:05]} 41. Rh2 {[%emt 0:00:05]} Rxf2 {[%emt 0:00:05]} 42. Rg1 {[%emt 0:00:05]} Ne2 {[%emt 0:00:03]} 43. Rh3 {[%emt 0:00:25]} Nxg1 {[%emt 0:00:07]} 0-1

[Event "Red Bull Chess Masters 2018"]
[Site "Istanbul"]
[Date "2018.10.20"]
[Round "3.1"]
[White "Eren, Cuneyt"]
[Black "Degirmenci, Yagiz"]
[Result "0-1"]
[ECO "D45"]
[WhiteElo "2084"]
[BlackElo "1881"]
[Annotator "NA"]
[PlyCount "144"]
[EventDate "2018.10.19"]
[EventType "team-tourn"]
[EventCountry "TUR"]
[SourceTitle "playchess.com"]
[Source "ChessBase"]
[SourceQuality "1"]
[TimeControl "600+5"]

1. d4 {[%emt 0:00:05]} d5 {[%emt 0:00:01]} 2. c4 {[%emt 0:00:07]} e6 {[%emt 0:00:05]} 3. Nf3 {[%emt 0:00:05]} Nf6 {[%emt 0:00:05]} 4. e3 {[%emt 0:00:05]} Be7 {[%emt 0:00:05]} 5. Bd3 {[%emt 0:00:06]} c6 {[%emt 0:00:00]} 6. O-O {[%emt 0:00:05]} O-O {[%emt 0:00:00]} 7. Nc3 {[%emt 0:00:05]} dxc4 {[%emt 0:00:03]} 8. Bxc4 {[%emt 0:00:05]} b5 {[%emt 0:00:05]} 9. Bd3 {[%emt 0:00:05]} a6 {[%emt 0:00:00]} 10. Qe2 {[%emt 0:00:05]} Bb7 {[%emt 0:00:00]} 11. Rd1 {[%emt 0:00:15]} Nbd7 {[%emt 0:00:00]} 12. e4 {[%emt 0:00:08]} Re8 {[%emt 0:01:11]} 13. Bg5 {[%emt 0:00:10]} Nf8 {[%emt 0:00:07]} 14. Rac1 {[%emt 0:00:29]} Qb6 {[%emt 0:00:10]} 15. e5 {[%emt 0:00:52]} Nd5 {[%emt 0:00:06]} 16. Bxe7 {[%emt 0:00:16]} Nxc3 {[%emt 0:00:11]} 17. bxc3 {[%emt 0:00:35]} Rxe7 {[%emt 0:00:05]} 18. Ng5 {[%emt 0:00:09]} c5 {[%emt 0:00:15]} 19. Be4 {[%emt 0:01:40]} cxd4 {[%emt 0:00:33]} 20. cxd4 {[%emt 0:00:13]} Rd8 {[%emt 0:00:10]} 21. Bxb7 {[%emt 0:00:13]} Rxb7 {[%emt 0:00:10]} 22. Qe3 {[%emt 0:02:00]} Rbd7 {[%emt 0:00:11]} 23. Nf3 {[%emt 0:00:35]} Ng6 {[%emt 0:00:15]} 24. h3 {[%emt 0:00:28]} Ne7 {[%emt 0:00:07]} 25. g4 {[%emt 0:00:50]} h6 {[%emt 0:00:04]} 26. Rc2 {[%emt 0:00:11]} Nd5 {[%emt 0:00:24]} 27. Qd2 {[%emt 0:00:12]} b4 {[%emt 0:00:08]} 28. g5 {[%emt 0:00:38]} h5 {[%emt 0:01:02]} 29. Rdc1 {[%emt 0:00:34]} a5 {[%emt 0:00:44]} 30. Rc8 {[%emt 0:00:26]} Qb7 {[%emt 0:00:05]} 31. Rxd8+ {[%emt 0:00:05]} Rxd8 {[%emt 0:00:00]} 32. g6 {[%emt 0:00:27]} fxg6 {[%emt 0:00:10]} 33. Ng5 {[%emt 0:00:02]} Rf8 {[%emt 0:01:12]} 34. Nxe6 {[%emt 0:00:14]} Rf5 {[%emt 0:00:56]} 35. Rc5 {[%emt 0:00:12]} Qd7 {[%emt 0:00:29]} 36. Rxd5 {[%emt 0:00:06]} Qxd5 {[%emt 0:00:19]} 37. Nf4 {[%emt 0:00:04]} Rg5+ {[%emt 0:01:02]} 38. Kf1 {[%emt 0:00:01]} Qh1+ {[%emt 0:00:16]} 39. Ke2 {[%emt 0:00:05]} Qe4+ {[%emt 0:00:05]} 40. Qe3 {[%emt 0:00:05]} Qc2+ {[%emt 0:00:00]} 41. Kf3 {[%emt 0:00:06]} Rf5 {[%emt 0:00:06]} 42. Kg3 {[%emt 0:00:04]} g5 {[%emt 0:00:34]} 43. Nxh5 {[%emt 0:00:03]} Qd1 {[%emt 0:00:40]} 44. f3 {[%emt 0:00:09]} g6 {[%emt 0:00:55]} 45. Nf6+ {[%emt 0:00:05]} Kf7 {[%emt 0:00:05]} 46. Ne4 {[%emt 0:00:02]} Kg7 {[%emt 0:00:04]} 47. e6 {[%emt 0:00:00]} Rf8 {[%emt 0:00:19]} 48. Nxg5 {[%emt 0:00:07]} Re8 {[%emt 0:00:10]} 49. Qe5+ {[%emt 0:00:02]} Kg8 {[%emt 0:00:01]} 50. Qf6 {[%emt 0:00:13]} Qg1+ {[%emt 0:00:10]} 51. Kf4 {[%emt 0:00:05]} Rf8 {[%emt 0:00:03]} 52. Nf7 {[%emt 0:00:02]} Qh2+ {[%emt 0:00:10]} 53. Ke4 {[%emt 0:00:05]} Qe2+ {[%emt 0:00:05]} 54. Kd5 {[%emt 0:00:00]} Qb5+ {[%emt 0:00:00]} 55. Ke4 {[%emt 0:00:02]} Qe2+ {[%emt 0:00:00]} 56. Kf4 {[%emt 0:00:08]} Qd2+ {[%emt 0:00:00]} 57. Kg3 {[%emt 0:00:05]} Qe1+ {[%emt 0:00:05]} 58. Kg4 {[%emt 0:00:05]} Qg1+ {[%emt 0:00:00]} 59. Kf4 {[%emt 0:00:09]} Qc1+ {[%emt 0:00:04]} 60. Ke5 {[%emt 0:00:05]} Qe3+ {[%emt 0:00:10]} 61. Kd6 {[%emt 0:00:10]} Rxf7 {[%emt 0:00:25]} 62. exf7+ {[%emt 0:00:08]} Kf8 {[%emt 0:00:01]} 63. Qxg6 {[%emt 0:00:07]} Qxd4+ {[%emt 0:00:05]} 64. Ke6 {[%emt 0:00:00]} Qc4+ {[%emt 0:00:05]} 65. Kf6 {[%emt 0:00:00]} Qf4+ {[%emt 0:00:11]} 66. Ke6 {[%emt 0:00:05]} Qe3+ {[%emt 0:00:05]} 67. Kf6 {[%emt 0:00:05]} Qxf3+ {[%emt 0:00:00]} 68. Ke6 {[%emt 0:00:05]} Qxh3+ {[%emt 0:00:01]} 69. Kf6 {[%emt 0:00:05]} Qc3+ {[%emt 0:00:00]} 70. Ke6 {[%emt 0:00:09]} Qc6+ {[%emt 0:00:05]} 71. Kf5 {[%emt 0:00:05]} Qxg6+ {[%emt 0:00:05]} 72. Kxg6 {[%emt 0:00:00]} a4 {[%emt 0:00:00]} 0-1

[Event "Red Bull Chess Masters 2018"]
[Site "Istanbul"]
[Date "2018.10.20"]
[Round "3.1"]
[White "Tofan, Ibrahim"]
[Black "Celikel, Fatih"]
[Result "0-1"]
[ECO "B02"]
[WhiteElo "2070"]
[BlackElo "1856"]
[Annotator "NA"]
[PlyCount "45"]
[EventDate "2018.10.19"]
[EventType "team-tourn"]
[EventCountry "TUR"]
[SourceTitle "playchess.com"]
[Source "ChessBase"]
[SourceQuality "1"]
[TimeControl "600+5"]

1. e4 {[%emt 0:00:04]} d5 {[%emt 0:00:05]} 2. exd5 {[%emt 0:00:05]} Nf6 {[%emt 0:00:03]} 3. Nc3 {[%emt 0:00:37]} e6 {[%emt 0:00:27]} 4. dxe6 {[%emt 0:00:12]} Bxe6 {[%emt 0:00:05]} 5. Nf3 {[%emt 0:00:08]} Bd6 {[%emt 0:01:23]} 6. d3 {[%emt 0:00:25]} Qe7 {[%emt 0:00:21]} 7. Be2 {[%emt 0:00:10]} Nc6 {[%emt 0:00:21]} 8. Be3 {[%emt 0:00:50]} h6 {[%emt 0:01:15]} 9. Qd2 {[%emt 0:00:12]} O-O-O {[%emt 0:00:24]} 10. Nb5 {[%emt 0:03:04]} a6 {[%emt 0:02:08]} 11. Nxd6+ {[%emt 0:00:31]} Qxd6 {[%emt 0:00:06]} 12. Bf4 {[%emt 0:01:20]} Qc5 {[%emt 0:01:09]} 13. O-O {[%emt 0:00:43]} g5 {[%emt 0:00:35]} 14. Be3 {[%emt 0:01:04]} Qd6 {[%emt 0:00:11]} 15. Qc3 {[%emt 0:00:20]} Nd5 {[%emt 0:00:58]} 16. Qc5 {[%emt 0:00:24]} Nf4 {[%emt 0:00:20]} 17. Rfe1 {[%emt 0:00:21]} Qd7 {[%emt 0:00:23]} 18. Ne5 $16 {[%emt 0:00:19]} (18. Bxf4 $142 gxf4 19. Ne5 Nxe5 20. Qxe5) 18... Nxe5 {[%emt 0:00:10]} 19. Qxe5 {[%emt 0:00:02]} Qc6 {[%emt 0:00:35]} 20. Bf3 {[%emt 0:00:14]} Bd5 {[%emt 0:00:05]} 21. Bxd5 {[%emt 0:00:26]} Nxd5 {[%emt 0:00:06]} 22. Qf5+ {[%emt 0:00:10]} Kb8 {[%emt 0:00:10]} 23. Bc1 {[%emt 0:00:14]} 0-1